[Event "Titled Tuesday Blitz January 10 Late 2023"]
[White "rikchessmx"]
[Black "Floresvillar Gonzalez, Luis Migu"]
[BlackFideId "5100542"]
[WhiteElo "2330"]
[BlackElo "2043"]
[Result "1-0"]
[Round "09"]
[TimeControl "180+2"]
[Date "2023.01.10"]
[WhiteClock "0:02:24"]
[BlackClock "0:00:02"]

1. e4 {[%clk 0:00:00]}  c6 {[%clk 0:00:00]} 2. d4 {[%clk 0:03:00]}  d5 {[%clk 0:02:59]} 3. Nc3 {[%clk 0:03:00]}  dxe4 {[%clk 0:02:59]} 4. Nxe4 {[%clk 0:03:01]}  Bf5 {[%clk 0:02:58]} 5. Ng3 {[%clk 0:03:02]}  Bg6 {[%clk 0:02:58]} 6. Nf3 {[%clk 0:03:02]}  Nd7 {[%clk 0:02:58]} 7. h4 {[%clk 0:03:03]}  h6 {[%clk 0:02:57]} 8. h5 {[%clk 0:03:03]}  Bh7 {[%clk 0:02:56]} 9. Bc4 {[%clk 0:03:04]}  e6 {[%clk 0:02:56]} 10. Qe2 {[%clk 0:03:04]}  Ngf6 {[%clk 0:02:54]} 11. Ne5 {[%clk 0:03:05]}  Nxe5 {[%clk 0:02:53]} 12. dxe5 {[%clk 0:03:04]}  Nd5 {[%clk 0:02:52]} 13. a3 {[%clk 0:03:04]}  Be7 {[%clk 0:02:50]} 14. Bd2 {[%clk 0:03:01]}  O-O {[%clk 0:02:48]} 15. f4 {[%clk 0:03:00]}  b5 {[%clk 0:02:47]} 16. Bb3 {[%clk 0:03:00]}  a5 {[%clk 0:02:43]} 17. Ne4 {[%clk 0:02:59]}  Bxe4 {[%clk 0:02:42]} 18. Qxe4 {[%clk 0:02:57]}  Bh4+ {[%clk 0:02:31]} 19. Kf1 {[%clk 0:02:57]}  a4 {[%clk 0:02:29]} 20. Ba2 {[%clk 0:02:55]}  Be7 {[%clk 0:02:21]} 21. Rd1 {[%clk 0:02:55]}  Qb6 {[%clk 0:01:47]} 22. Rh3 {[%clk 0:02:51]}  Rad8 {[%clk 0:01:44]} 23. c3 {[%clk 0:02:49]}  Rd7 {[%clk 0:01:42]} 24. Bb1 {[%clk 0:02:48]}  f5 {[%clk 0:01:24]} 25. exf6 {[%clk 0:02:46]}  Rxf6 {[%clk 0:00:49]} 26. Qh7+ {[%clk 0:02:46]}  Kf7 {[%clk 0:00:49]} 27. Bg6+ {[%clk 0:02:43]}  Rxg6 {[%clk 0:00:27]} 28. Qxg6+ {[%clk 0:02:42]}  Kf8 {[%clk 0:00:26]} 29. Qxe6 {[%clk 0:02:40]}  Rd6 {[%clk 0:00:21]} 30. Qe4 {[%clk 0:02:39]}  Rf6 {[%clk 0:00:16]} 31. Rf3 {[%clk 0:02:32]}  Qc7 {[%clk 0:00:14]} 32. g4 {[%clk 0:02:24]}  Bd6 {[%clk 0:00:13]} 33. g5 {[%clk 0:02:24]}  hxg5 {[%clk 0:00:10]} 34. fxg5 {[%clk 0:02:24]}  Rxf3+ {[%clk 0:00:07]} 35. Qxf3+ {[%clk 0:02:24]}  Kg8 {[%clk 0:00:06]} 36. Kg2 {[%clk 0:02:25]}  Nf4+ {[%clk 0:00:03]} 37. Bxf4 {[%clk 0:02:24]}  Bxf4 {[%clk 0:00:02]} 38. g6 {[%clk 0:02:24]} 1-0


[Site "https://www.chess.com"]

[Event "Titled Tuesday Blitz January 10 Late 2023"]
[White "Aung Thant Zin"]
[Black "Weisz, Bryan"]
[WhiteFideId "13000063"]
[BlackFideId "30934133"]
[WhiteElo "2268"]
[BlackElo "1973"]
[Result "1-0"]
[Round "09"]
[TimeControl "180+2"]
[Date "2023.01.10"]
[WhiteClock "0:00:30"]
[BlackClock "0:00:05"]

1. e4 {[%clk 0:00:00]}  e6 {[%clk 0:00:00]} 2. d4 {[%clk 0:02:56]}  d5 {[%clk 0:02:46]} 3. Nc3 {[%clk 0:02:55]}  Nf6 {[%clk 0:02:43]} 4. Bg5 {[%clk 0:02:55]}  Be7 {[%clk 0:02:42]} 5. Bxf6 {[%clk 0:02:55]}  Bxf6 {[%clk 0:02:31]} 6. Nf3 {[%clk 0:02:50]}  Nc6 {[%clk 0:02:22]} 7. e5 {[%clk 0:02:51]}  Bg5 {[%clk 0:02:15]} 8. a3 {[%clk 0:02:48]}  f6 {[%clk 0:02:10]} 9. h4 {[%clk 0:02:49]}  Bh6 {[%clk 0:01:51]} 10. Bb5 {[%clk 0:02:45]}  O-O {[%clk 0:01:50]} 11. Bxc6 {[%clk 0:02:43]}  bxc6 {[%clk 0:01:48]} 12. Na4 {[%clk 0:02:37]}  fxe5 {[%clk 0:01:48]} 13. Nxe5 {[%clk 0:02:25]}  Qd6 {[%clk 0:01:34]} 14. g3 {[%clk 0:02:25]}  Rf5 {[%clk 0:01:29]} 15. f4 {[%clk 0:02:05]}  Bxf4 {[%clk 0:01:17]} 16. gxf4 {[%clk 0:01:48]}  Rxf4 {[%clk 0:01:10]} 17. Nc5 {[%clk 0:01:47]}  Ba6 {[%clk 0:01:11]} 18. Qd2 {[%clk 0:01:36]}  Raf8 {[%clk 0:00:53]} 19. O-O-O {[%clk 0:01:32]}  Rf2 {[%clk 0:00:47]} 20. Qg5 {[%clk 0:01:25]}  Be2 {[%clk 0:00:38]} 21. Rhg1 {[%clk 0:01:11]}  R8f7 {[%clk 0:00:32]} 22. Nxf7 {[%clk 0:00:57]}  Rxf7 {[%clk 0:00:16]} 23. Rd2 {[%clk 0:00:51]}  h6 {[%clk 0:00:16]} 24. Qg6 {[%clk 0:00:48]}  Bf3 {[%clk 0:00:12]} 25. Rf2 {[%clk 0:00:37]}  Qf4+ {[%clk 0:00:07]} 26. Kb1 {[%clk 0:00:35]}  Qe3 {[%clk 0:00:06]} 27. Rgf1 {[%clk 0:00:35]}  Qe4 {[%clk 0:00:05]} 28. Qg3 {[%clk 0:00:30]} 1-0


[Site "https://www.chess.com"]

[Event "Titled Tuesday Blitz January 10 Late 2023"]
[White "Marcolino, Daniel Mattos"]
[Black "Colivet Gamboa, Julio Cesar"]
[WhiteFideId "2106841"]
[BlackFideId "3949583"]
[WhiteElo "2006"]
[BlackElo "1844"]
[Result "1-0"]
[Round "09"]
[TimeControl "180+2"]
[Date "2023.01.10"]
[WhiteClock "0:02:10"]
[BlackClock "0:02:18"]

1. d4 {[%clk 0:00:00]}  Nf6 {[%clk 0:00:00]} 2. Nf3 {[%clk 0:03:00]}  g6 {[%clk 0:02:56]} 3. g3 {[%clk 0:03:00]}  Bg7 {[%clk 0:02:56]} 4. Bg2 {[%clk 0:03:01]}  d6 {[%clk 0:02:56]} 5. O-O {[%clk 0:03:01]}  O-O {[%clk 0:02:57]} 6. b3 {[%clk 0:03:01]}  c5 {[%clk 0:02:57]} 7. Bb2 {[%clk 0:03:01]}  cxd4 {[%clk 0:02:58]} 8. Nxd4 {[%clk 0:03:01]}  a6 {[%clk 0:02:57]} 9. c4 {[%clk 0:03:01]}  Qc7 {[%clk 0:02:54]} 10. Nc3 {[%clk 0:02:55]}  Nc6 {[%clk 0:02:54]} 11. Nxc6 {[%clk 0:02:54]}  bxc6 {[%clk 0:02:53]} 12. Qd2 {[%clk 0:02:35]}  Bf5 {[%clk 0:02:51]} 13. Rfe1 {[%clk 0:02:35]}  Rad8 {[%clk 0:02:50]} 14. e4 {[%clk 0:02:31]}  Be6 {[%clk 0:02:47]} 15. Rac1 {[%clk 0:02:31]}  Rfe8 {[%clk 0:02:47]} 16. Na4 {[%clk 0:02:29]}  Qb7 {[%clk 0:02:43]} 17. Bc3 {[%clk 0:02:28]}  d5 {[%clk 0:02:31]} 18. exd5 {[%clk 0:02:27]}  cxd5 {[%clk 0:02:30]} 19. Qb2 {[%clk 0:02:22]}  dxc4 {[%clk 0:02:29]} 20. Bxb7 {[%clk 0:02:21]}  Rb8 {[%clk 0:02:29]} 21. Bg2 {[%clk 0:02:20]}  cxb3 {[%clk 0:02:17]} 22. axb3 {[%clk 0:02:18]}  Rxb3 {[%clk 0:02:17]} 23. Qa1 {[%clk 0:02:16]}  Rc8 {[%clk 0:02:18]} 24. Be5 {[%clk 0:02:10]} 1-0


[Site "https://www.chess.com"]

[Event "Titled Tuesday Blitz January 10 Late 2023"]
[White "Gardezi, Arsal"]
[Black "Santos Flores, Alberto"]
[WhiteFideId "30949521"]
[BlackFideId "3601234"]
[WhiteElo "2093"]
[BlackElo "2164"]
[Result "0-1"]
[Round "09"]
[TimeControl "180+2"]
[Date "2023.01.10"]
[WhiteClock "0:00:20"]
[BlackClock "0:00:50"]

1. Nf3 {[%clk 0:00:00]}  c5 {[%clk 0:00:00]} 2. g3 {[%clk 0:02:53]}  g6 {[%clk 0:02:59]} 3. Bg2 {[%clk 0:02:53]}  Bg7 {[%clk 0:02:59]} 4. d3 {[%clk 0:02:54]}  Nc6 {[%clk 0:02:59]} 5. Nbd2 {[%clk 0:02:54]}  e6 {[%clk 0:02:59]} 6. e4 {[%clk 0:02:55]}  Nge7 {[%clk 0:02:57]} 7. O-O {[%clk 0:02:56]}  O-O {[%clk 0:02:58]} 8. Re1 {[%clk 0:02:56]}  d6 {[%clk 0:02:58]} 9. c3 {[%clk 0:02:56]}  Rb8 {[%clk 0:02:58]} 10. Nf1 {[%clk 0:02:57]}  b5 {[%clk 0:02:57]} 11. d4 {[%clk 0:02:56]}  cxd4 {[%clk 0:02:57]} 12. cxd4 {[%clk 0:02:57]}  d5 {[%clk 0:02:56]} 13. e5 {[%clk 0:02:58]}  b4 {[%clk 0:02:57]} 14. Bg5 {[%clk 0:02:58]}  Ba6 {[%clk 0:02:57]} 15. h4 {[%clk 0:02:58]}  Bxf1 {[%clk 0:02:56]} 16. Kxf1 {[%clk 0:02:55]}  Qb6 {[%clk 0:02:43]} 17. Kg1 {[%clk 0:02:53]}  Nf5 {[%clk 0:02:41]} 18. Rc1 {[%clk 0:02:51]}  Ncxd4 {[%clk 0:02:41]} 19. Nxd4 {[%clk 0:02:41]}  Qxd4 {[%clk 0:02:40]} 20. Qxd4 {[%clk 0:02:34]}  Nxd4 {[%clk 0:02:41]} 21. Be7 {[%clk 0:02:26]}  Rfc8 {[%clk 0:02:42]} 22. Rxc8+ {[%clk 0:02:25]}  Rxc8 {[%clk 0:02:37]} 23. Bxb4 {[%clk 0:02:24]}  Rc2 {[%clk 0:02:37]} 24. Kf1 {[%clk 0:02:24]}  h6 {[%clk 0:02:31]} 25. Bc3 {[%clk 0:02:08]}  Nb5 {[%clk 0:01:47]} 26. Re2 {[%clk 0:01:44]}  Rc1+ {[%clk 0:01:46]} 27. Re1 {[%clk 0:01:40]}  Rxe1+ {[%clk 0:01:35]} 28. Kxe1 {[%clk 0:01:40]}  Nxc3 {[%clk 0:01:35]} 29. bxc3 {[%clk 0:01:41]}  Bxe5 {[%clk 0:01:20]} 30. Kd2 {[%clk 0:01:41]}  Kf8 {[%clk 0:01:21]} 31. Kd3 {[%clk 0:01:42]}  Ke7 {[%clk 0:01:20]} 32. g4 {[%clk 0:01:42]}  Kd6 {[%clk 0:01:20]} 33. Bf3 {[%clk 0:01:42]}  Kc5 {[%clk 0:01:17]} 34. h5 {[%clk 0:01:37]}  Bf6 {[%clk 0:01:12]} 35. Bd1 {[%clk 0:01:34]}  e5 {[%clk 0:01:08]} 36. f3 {[%clk 0:01:30]}  gxh5 {[%clk 0:01:06]} 37. gxh5 {[%clk 0:01:20]}  Bg5 {[%clk 0:01:03]} 38. Ba4 {[%clk 0:01:19]}  f5 {[%clk 0:01:03]} 39. Bd7 {[%clk 0:01:15]}  e4+ {[%clk 0:01:03]} 40. fxe4 {[%clk 0:01:09]}  dxe4+ {[%clk 0:01:03]} 41. Kc2 {[%clk 0:01:04]}  f4 {[%clk 0:01:02]} 42. Bf5 {[%clk 0:00:54]}  Kd5 {[%clk 0:01:01]} 43. c4+ {[%clk 0:00:54]}  Ke5 {[%clk 0:00:55]} 44. Bh3 {[%clk 0:00:49]}  f3 {[%clk 0:00:56]} 45. c5 {[%clk 0:00:40]}  e3 {[%clk 0:00:55]} 46. Kd1 {[%clk 0:00:26]}  e2+ {[%clk 0:00:51]} 47. Ke1 {[%clk 0:00:19]}  Bh4+ {[%clk 0:00:50]} 48. Kd2 {[%clk 0:00:20]}  e1=Q+ {[%clk 0:00:50]} 49. Kd3 {[%clk 0:00:20]} 0-1


[Site "https://www.chess.com"]

[Event "Titled Tuesday Blitz January 10 Late 2023"]
[White "Thiel, Thomas"]
[Black "Vasques, Antonio Pedro Freixial"]
[WhiteFideId "4615964"]
[BlackFideId "1908332"]
[WhiteElo "2234"]
[BlackElo "2214"]
[Result "0-1"]
[Round "09"]
[TimeControl "180+2"]
[Date "2023.01.10"]
[WhiteClock "0:00:20"]
[BlackClock "0:00:11"]

1. e4 {[%clk 0:00:00]}  c5 {[%clk 0:00:00]} 2. Nc3 {[%clk 0:02:58]}  Nc6 {[%clk 0:02:56]} 3. Bb5 {[%clk 0:02:57]}  Nd4 {[%clk 0:02:55]} 4. Bc4 {[%clk 0:02:55]}  e6 {[%clk 0:02:53]} 5. Nge2 {[%clk 0:02:53]}  Ne7 {[%clk 0:02:52]} 6. O-O {[%clk 0:02:52]}  a6 {[%clk 0:02:50]} 7. d3 {[%clk 0:02:51]}  Nec6 {[%clk 0:02:44]} 8. Nxd4 {[%clk 0:02:50]}  cxd4 {[%clk 0:02:43]} 9. Ne2 {[%clk 0:02:47]}  Be7 {[%clk 0:02:39]} 10. Bb3 {[%clk 0:02:45]}  O-O {[%clk 0:02:38]} 11. f4 {[%clk 0:02:42]}  Na5 {[%clk 0:02:38]} 12. Nxd4 {[%clk 0:02:41]}  Bc5 {[%clk 0:02:36]} 13. Be3 {[%clk 0:02:34]}  Nxb3 {[%clk 0:02:35]} 14. axb3 {[%clk 0:02:33]}  d6 {[%clk 0:02:33]} 15. c3 {[%clk 0:02:31]}  b5 {[%clk 0:02:32]} 16. b4 {[%clk 0:02:26]}  Bb6 {[%clk 0:02:24]} 17. Kh1 {[%clk 0:02:21]}  Bb7 {[%clk 0:02:21]} 18. Qe2 {[%clk 0:02:20]}  Qh4 {[%clk 0:02:21]} 19. Nb3 {[%clk 0:02:10]}  Bc7 {[%clk 0:02:21]} 20. Na5 {[%clk 0:02:05]}  Bxa5 {[%clk 0:02:10]} 21. Rxa5 {[%clk 0:02:00]}  f5 {[%clk 0:01:58]} 22. e5 {[%clk 0:01:57]}  dxe5 {[%clk 0:01:58]} 23. fxe5 {[%clk 0:01:33]}  f4 {[%clk 0:01:54]} 24. Bg1 {[%clk 0:01:34]}  Rf5 {[%clk 0:01:54]} 25. d4 {[%clk 0:01:32]}  Rh5 {[%clk 0:01:37]} 26. Qf2 {[%clk 0:01:32]}  f3 {[%clk 0:01:36]} 27. gxf3 {[%clk 0:01:32]}  Rf8 {[%clk 0:01:10]} 28. Qxh4 {[%clk 0:01:25]}  Rxf3 {[%clk 0:01:02]} 29. Kg2 {[%clk 0:01:18]}  Rf4+ {[%clk 0:00:57]} 30. Kg3 {[%clk 0:01:13]}  Rfxh4 {[%clk 0:00:41]} 31. Rf4 {[%clk 0:01:04]}  Rxf4 {[%clk 0:00:41]} 32. Kxf4 {[%clk 0:01:00]}  Rf5+ {[%clk 0:00:20]} 33. Ke3 {[%clk 0:01:01]}  Rf1 {[%clk 0:00:20]} 34. Bf2 {[%clk 0:00:59]}  g5 {[%clk 0:00:21]} 35. Bg3 {[%clk 0:00:57]}  Rb1 {[%clk 0:00:22]} 36. Ra2 {[%clk 0:00:53]}  Kf7 {[%clk 0:00:20]} 37. Kd2 {[%clk 0:00:49]}  Kg6 {[%clk 0:00:20]} 38. Kc2 {[%clk 0:00:46]}  Be4+ {[%clk 0:00:20]} 39. Kd2 {[%clk 0:00:40]}  Bb7 {[%clk 0:00:17]} 40. Kc2 {[%clk 0:00:40]}  Rg1 {[%clk 0:00:18]} 41. b3 {[%clk 0:00:40]}  Rg2+ {[%clk 0:00:19]} 42. Kb1 {[%clk 0:00:38]}  Be4+ {[%clk 0:00:17]} 43. Ka1 {[%clk 0:00:38]}  Rg1+ {[%clk 0:00:16]} 44. Kb2 {[%clk 0:00:38]}  Rb1+ {[%clk 0:00:16]} 45. Ka3 {[%clk 0:00:37]}  h5 {[%clk 0:00:16]} 46. Rf2 {[%clk 0:00:36]}  Bd5 {[%clk 0:00:16]} 47. c4 {[%clk 0:00:32]}  bxc4 {[%clk 0:00:16]} 48. bxc4 {[%clk 0:00:30]}  Bxc4 {[%clk 0:00:16]} 49. Rc2 {[%clk 0:00:30]}  Bd5 {[%clk 0:00:17]} 50. Rc8 {[%clk 0:00:27]}  h4 {[%clk 0:00:13]} 51. Bf2 {[%clk 0:00:26]}  Ra1+ {[%clk 0:00:13]} 52. Kb2 {[%clk 0:00:24]}  Ra2+ {[%clk 0:00:12]} 53. Kc3 {[%clk 0:00:20]}  Rxf2 {[%clk 0:00:11]} 0-1


[Site "https://www.chess.com"]

[Event "Titled Tuesday Blitz January 10 Late 2023"]
[White "Guimaraes, Wagner Peixoto"]
[Black "Ali, Kairi G."]
[WhiteFideId "2100940"]
[BlackFideId "9206655"]
[WhiteElo "2194"]
[BlackElo "1802"]
[Result "1-0"]
[Round "09"]
[TimeControl "180+2"]
[Date "2023.01.10"]
[WhiteClock "0:00:15"]
[BlackClock "0:00:16"]

1. e4 {[%clk 0:00:00]}  c6 {[%clk 0:00:00]} 2. d4 {[%clk 0:03:00]}  d5 {[%clk 0:03:00]} 3. f3 {[%clk 0:02:58]}  dxe4 {[%clk 0:03:00]} 4. fxe4 {[%clk 0:02:58]}  e5 {[%clk 0:02:58]} 5. Nf3 {[%clk 0:02:59]}  Bg4 {[%clk 0:02:59]} 6. Bc4 {[%clk 0:02:59]}  Nd7 {[%clk 0:02:58]} 7. O-O {[%clk 0:02:58]}  Ngf6 {[%clk 0:02:48]} 8. c3 {[%clk 0:02:54]}  Bd6 {[%clk 0:02:39]} 9. Nbd2 {[%clk 0:02:42]}  O-O {[%clk 0:02:36]} 10. Qe1 {[%clk 0:02:41]}  h6 {[%clk 0:02:36]} 11. Qh4 {[%clk 0:02:41]}  Qe7 {[%clk 0:02:29]} 12. Re1 {[%clk 0:02:30]}  Rfe8 {[%clk 0:02:16]} 13. Bb3 {[%clk 0:02:20]}  b5 {[%clk 0:02:13]} 14. a4 {[%clk 0:02:18]}  a5 {[%clk 0:02:04]} 15. h3 {[%clk 0:02:15]}  Be6 {[%clk 0:01:59]} 16. Bc2 {[%clk 0:01:55]}  b4 {[%clk 0:01:57]} 17. c4 {[%clk 0:01:43]}  exd4 {[%clk 0:01:51]} 18. Nxd4 {[%clk 0:01:40]}  Bc5 {[%clk 0:01:50]} 19. Nf3 {[%clk 0:01:40]}  Ne5 {[%clk 0:01:50]} 20. Kh1 {[%clk 0:01:40]}  Nxf3 {[%clk 0:01:47]} 21. Nxf3 {[%clk 0:01:35]}  Rad8 {[%clk 0:01:46]} 22. e5 {[%clk 0:01:36]}  Nd7 {[%clk 0:01:26]} 23. Bg5 {[%clk 0:01:29]}  f6 {[%clk 0:01:24]} 24. exf6 {[%clk 0:01:28]}  Nxf6 {[%clk 0:01:09]} 25. Bxf6 {[%clk 0:01:25]}  Qxf6 {[%clk 0:01:09]} 26. Qe4 {[%clk 0:00:59]}  Bf7 {[%clk 0:01:10]} 27. Qh7+ {[%clk 0:00:57]}  Kf8 {[%clk 0:00:54]} 28. Rf1 {[%clk 0:00:48]}  Re2 {[%clk 0:00:54]} 29. Ng1 {[%clk 0:00:44]}  Rf2 {[%clk 0:00:42]} 30. Qh8+ {[%clk 0:00:30]}  Ke7 {[%clk 0:00:41]} 31. Rfe1+ {[%clk 0:00:22]}  Be6 {[%clk 0:00:31]} 32. Qh7 {[%clk 0:00:20]}  Rdd2 {[%clk 0:00:21]} 33. Be4 {[%clk 0:00:20]}  Qg5 {[%clk 0:00:15]} 34. Bf3 {[%clk 0:00:17]}  Rxf3 {[%clk 0:00:13]} 35. Rxe6+ {[%clk 0:00:13]}  Kxe6 {[%clk 0:00:13]} 36. Qe4+ {[%clk 0:00:13]}  Kd7 {[%clk 0:00:13]} 37. Qxf3 {[%clk 0:00:13]}  Qe3 {[%clk 0:00:11]} 38. Qxe3 {[%clk 0:00:14]}  Bxe3 {[%clk 0:00:10]} 39. Nf3 {[%clk 0:00:13]}  Bf4 {[%clk 0:00:10]} 40. Nxd2 {[%clk 0:00:13]}  Bxd2 {[%clk 0:00:10]} 41. Rd1 {[%clk 0:00:13]}  Kd6 {[%clk 0:00:11]} 42. Rxd2+ {[%clk 0:00:13]}  Kc5 {[%clk 0:00:11]} 43. Rd7 {[%clk 0:00:13]}  Kxc4 {[%clk 0:00:12]} 44. Rxg7 {[%clk 0:00:13]}  Kb3 {[%clk 0:00:12]} 45. Rc7 {[%clk 0:00:14]}  Kxb2 {[%clk 0:00:13]} 46. Rxc6 {[%clk 0:00:14]}  Ka3 {[%clk 0:00:13]} 47. Rxh6 {[%clk 0:00:14]}  b3 {[%clk 0:00:13]} 48. Rb6 {[%clk 0:00:13]}  Kxa4 {[%clk 0:00:11]} 49. h4 {[%clk 0:00:13]}  Ka3 {[%clk 0:00:11]} 50. h5 {[%clk 0:00:13]}  a4 {[%clk 0:00:11]} 51. h6 {[%clk 0:00:14]}  Ka2 {[%clk 0:00:09]} 52. h7 {[%clk 0:00:14]}  a3 {[%clk 0:00:08]} 53. h8=Q {[%clk 0:00:15]}  b2 {[%clk 0:00:09]} 54. Qg8+ {[%clk 0:00:15]}  Ka1 {[%clk 0:00:09]} 55. Qg6 {[%clk 0:00:15]}  a2 {[%clk 0:00:09]} 56. g4 {[%clk 0:00:14]}  b1=Q+ {[%clk 0:00:08]} 57. Qxb1+ {[%clk 0:00:13]}  axb1=Q+ {[%clk 0:00:08]} 58. Rxb1+ {[%clk 0:00:13]}  Kxb1 {[%clk 0:00:09]} 59. g5 {[%clk 0:00:13]}  Kc2 {[%clk 0:00:10]} 60. g6 {[%clk 0:00:14]}  Kb2 {[%clk 0:00:11]} 61. g7 {[%clk 0:00:14]}  Kc3 {[%clk 0:00:12]} 62. g8=Q {[%clk 0:00:15]}  Kd4 {[%clk 0:00:13]} 63. Qe6 {[%clk 0:00:15]}  Kc3 {[%clk 0:00:14]} 64. Kg2 {[%clk 0:00:15]}  Kb2 {[%clk 0:00:14]} 65. Qe3 {[%clk 0:00:15]}  Kc2 {[%clk 0:00:15]} 66. Qd4 {[%clk 0:00:14]}  Kb3 {[%clk 0:00:16]} 67. Kf2 {[%clk 0:00:14]}  Kc2 {[%clk 0:00:15]} 68. Ke2 {[%clk 0:00:15]}  Kb3 {[%clk 0:00:15]} 69. Qc5 {[%clk 0:00:15]}  Kb2 {[%clk 0:00:16]} 70. Qc4 {[%clk 0:00:15]}  Ka3 {[%clk 0:00:16]} 71. Qb5 {[%clk 0:00:14]}  Ka2 {[%clk 0:00:15]} 72. Kd2 {[%clk 0:00:15]}  Ka1 {[%clk 0:00:16]} 73. Kc2 {[%clk 0:00:15]} 1-0


[Site "https://www.chess.com"]

[Event "Titled Tuesday Blitz January 10 Late 2023"]
[White "Smith, Garrett L"]
[Black "Dias, Joao Batista"]
[WhiteFideId "2024829"]
[BlackFideId "2108240"]
[WhiteElo "2047"]
[BlackElo "1796"]
[Result "0-1"]
[Round "09"]
[TimeControl "180+2"]
[Date "2023.01.10"]
[WhiteClock "0:00:18"]
[BlackClock "0:00:37"]

1. e4 {[%clk 0:00:00]}  e5 {[%clk 0:00:00]} 2. Nf3 {[%clk 0:03:00]}  Nc6 {[%clk 0:02:50]} 3. Bc4 {[%clk 0:02:56]}  Be7 {[%clk 0:02:49]} 4. c3 {[%clk 0:02:56]}  Nf6 {[%clk 0:02:48]} 5. d3 {[%clk 0:02:54]}  O-O {[%clk 0:02:48]} 6. O-O {[%clk 0:02:53]}  d6 {[%clk 0:02:47]} 7. Re1 {[%clk 0:02:53]}  Bg4 {[%clk 0:02:47]} 8. h3 {[%clk 0:02:44]}  Bxf3 {[%clk 0:02:46]} 9. Qxf3 {[%clk 0:02:44]}  a6 {[%clk 0:02:45]} 10. a4 {[%clk 0:02:44]}  Rb8 {[%clk 0:02:42]} 11. Nd2 {[%clk 0:02:43]}  b5 {[%clk 0:02:39]} 12. axb5 {[%clk 0:02:40]}  axb5 {[%clk 0:02:39]} 13. Bb3 {[%clk 0:02:33]}  b4 {[%clk 0:02:40]} 14. Ba4 {[%clk 0:02:32]}  bxc3 {[%clk 0:02:41]} 15. bxc3 {[%clk 0:02:25]}  Na5 {[%clk 0:02:39]} 16. Ba3 {[%clk 0:02:23]}  c5 {[%clk 0:02:25]} 17. Nf1 {[%clk 0:02:13]}  Qc7 {[%clk 0:02:24]} 18. Ne3 {[%clk 0:02:03]}  Nb3 {[%clk 0:02:20]} 19. Ra2 {[%clk 0:02:01]}  Na5 {[%clk 0:02:17]} 20. g4 {[%clk 0:01:40]}  h6 {[%clk 0:02:15]} 21. h4 {[%clk 0:01:37]}  Rb7 {[%clk 0:02:14]} 22. Kg2 {[%clk 0:01:36]}  Rfb8 {[%clk 0:01:51]} 23. g5 {[%clk 0:01:24]}  hxg5 {[%clk 0:01:49]} 24. hxg5 {[%clk 0:01:21]}  Nh7 {[%clk 0:01:49]} 25. Rh1 {[%clk 0:01:20]}  Bxg5 {[%clk 0:01:49]} 26. Nd5 {[%clk 0:01:12]}  Qd8 {[%clk 0:01:39]} 27. Qh5 {[%clk 0:00:57]}  Bh6 {[%clk 0:01:34]} 28. Bc1 {[%clk 0:00:53]}  Rb1 {[%clk 0:01:33]} 29. Bxh6 {[%clk 0:00:52]}  Rxh1 {[%clk 0:01:24]} 30. Qxh1 {[%clk 0:00:43]}  gxh6 {[%clk 0:01:24]} 31. Qxh6 {[%clk 0:00:40]}  Qg5+ {[%clk 0:01:23]} 32. Qxg5+ {[%clk 0:00:39]}  Nxg5 {[%clk 0:01:23]} 33. Bd7 {[%clk 0:00:40]}  Rb7 {[%clk 0:01:23]} 34. Be8 {[%clk 0:00:34]}  Ra7 {[%clk 0:01:04]} 35. Bb5 {[%clk 0:00:28]}  Kg7 {[%clk 0:01:00]} 36. c4 {[%clk 0:00:24]}  Nc6 {[%clk 0:00:58]} 37. Rxa7 {[%clk 0:00:24]}  Nxa7 {[%clk 0:00:55]} 38. Bd7 {[%clk 0:00:21]}  Nh7 {[%clk 0:00:55]} 39. Kg3 {[%clk 0:00:22]}  Nf6 {[%clk 0:00:47]} 40. Nxf6 {[%clk 0:00:22]}  Kxf6 {[%clk 0:00:46]} 41. f4 {[%clk 0:00:20]}  Ke7 {[%clk 0:00:47]} 42. Ba4 {[%clk 0:00:19]}  Nc8 {[%clk 0:00:47]} 43. Kg4 {[%clk 0:00:19]}  f6 {[%clk 0:00:43]} 44. Kf5 {[%clk 0:00:19]}  Nb6 {[%clk 0:00:42]} 45. Bb5 {[%clk 0:00:19]}  Na8 {[%clk 0:00:42]} 46. fxe5 {[%clk 0:00:19]}  fxe5 {[%clk 0:00:41]} 47. Bc6 {[%clk 0:00:19]}  Nc7 {[%clk 0:00:41]} 48. Ba4 {[%clk 0:00:18]}  Ne6 {[%clk 0:00:41]} 49. Bd1 {[%clk 0:00:18]}  Nf4 {[%clk 0:00:40]} 50. Bc2 {[%clk 0:00:17]}  Ne2 {[%clk 0:00:40]} 51. Bb1 {[%clk 0:00:17]}  Nc3 {[%clk 0:00:39]} 52. Bc2 {[%clk 0:00:17]}  Ne2 {[%clk 0:00:38]} 53. Bb1 {[%clk 0:00:17]}  Ng3+ {[%clk 0:00:38]} 54. Kg4 {[%clk 0:00:18]}  Nf1 {[%clk 0:00:38]} 55. Bc2 {[%clk 0:00:18]}  Ne3+ {[%clk 0:00:37]} 0-1


[Site "https://www.chess.com"]

[Event "Titled Tuesday Blitz January 10 Late 2023"]
[White "Antonio, Jorge Carlos"]
[Black "Rodrigues, Leonardo De Miranda"]
[WhiteFideId "113190"]
[BlackFideId "2108658"]
[WhiteElo "2277"]
[BlackElo "2112"]
[Result "0-1"]
[Round "09"]
[TimeControl "180+2"]
[Date "2023.01.10"]
[WhiteClock "0:01:39"]
[BlackClock "0:02:00"]

1. d4 {[%clk 0:00:00]}  Nf6 {[%clk 0:00:00]} 2. Nf3 {[%clk 0:02:29]}  g6 {[%clk 0:02:50]} 3. c4 {[%clk 0:02:29]}  Bg7 {[%clk 0:02:49]} 4. Nc3 {[%clk 0:02:28]}  O-O {[%clk 0:02:49]} 5. e4 {[%clk 0:02:28]}  d6 {[%clk 0:02:50]} 6. Be2 {[%clk 0:02:27]}  Nbd7 {[%clk 0:02:50]} 7. O-O {[%clk 0:02:27]}  e5 {[%clk 0:02:48]} 8. dxe5 {[%clk 0:02:26]}  dxe5 {[%clk 0:02:49]} 9. h3 {[%clk 0:02:25]}  c6 {[%clk 0:02:48]} 10. b4 {[%clk 0:02:23]}  Qe7 {[%clk 0:02:47]} 11. Qb3 {[%clk 0:02:20]}  a5 {[%clk 0:02:44]} 12. b5 {[%clk 0:02:17]}  a4 {[%clk 0:02:43]} 13. Qc2 {[%clk 0:02:07]}  a3 {[%clk 0:02:40]} 14. Be3 {[%clk 0:02:04]}  Nh5 {[%clk 0:02:36]} 15. bxc6 {[%clk 0:02:02]}  bxc6 {[%clk 0:02:24]} 16. Rab1 {[%clk 0:01:59]}  Nf4 {[%clk 0:02:24]} 17. Kh2 {[%clk 0:01:53]}  Ne6 {[%clk 0:02:15]} 18. Rfd1 {[%clk 0:01:52]}  Nd4 {[%clk 0:02:04]} 19. Nxd4 {[%clk 0:01:48]}  exd4 {[%clk 0:01:59]} 20. Bxd4 {[%clk 0:01:45]}  Bxd4 {[%clk 0:02:00]} 21. Rxd4 {[%clk 0:01:45]}  Qe5+ {[%clk 0:02:00]} 22. Kg1 {[%clk 0:01:44]}  Qxd4 {[%clk 0:02:00]} 23. Rd1 {[%clk 0:01:39]}  Qe5 {[%clk 0:02:00]} 0-1


[Site "https://www.chess.com"]